[Event "Titled Tuesday Blitz August 17 2021"]
[White "Baskin, Robert"]
[Black "Chernov, Mikhail"]
[WhiteFideId "24662402"]
[BlackFideId "24143170"]
[WhiteElo "2462"]
[BlackElo "2244"]
[Result "0-1"]
[Round "11"]
[TimeControl "180+1"]
[Date "2021.08.17"]
[WhiteClock "0:00:32"]
[BlackClock "0:00:37"]

1. e4 {[%clk 0:03:00]}  c5 {[%clk 0:02:59]} 2. Nf3 {[%clk 0:03:00]}  Nc6 {[%clk 0:03:00]} 3. d4 {[%clk 0:02:58]}  cxd4 {[%clk 0:03:01]} 4. Nxd4 {[%clk 0:02:59]}  Nf6 {[%clk 0:03:01]} 5. Nc3 {[%clk 0:02:58]}  d6 {[%clk 0:03:02]} 6. Bg5 {[%clk 0:02:57]}  e6 {[%clk 0:03:02]} 7. Qd2 {[%clk 0:02:56]}  a6 {[%clk 0:03:02]} 8. O-O-O {[%clk 0:02:57]}  Bd7 {[%clk 0:03:03]} 9. f3 {[%clk 0:02:57]}  b5 {[%clk 0:03:03]} 10. Nxc6 {[%clk 0:02:50]}  Bxc6 {[%clk 0:03:03]} 11. Kb1 {[%clk 0:02:51]}  Qc7 {[%clk 0:03:02]} 12. Ne2 {[%clk 0:02:36]}  Rc8 {[%clk 0:02:46]} 13. Nd4 {[%clk 0:02:35]}  Bd7 {[%clk 0:02:46]} 14. h4 {[%clk 0:02:34]}  h6 {[%clk 0:02:37]} 15. Be3 {[%clk 0:02:27]}  h5 {[%clk 0:02:29]} 16. Bg5 {[%clk 0:02:25]}  Be7 {[%clk 0:02:27]} 17. Be2 {[%clk 0:02:14]}  Qb6 {[%clk 0:02:07]} 18. e5 {[%clk 0:01:30]}  dxe5 {[%clk 0:01:12]} 19. Nf5 {[%clk 0:01:28]}  exf5 {[%clk 0:00:54]} 20. Bxf6 {[%clk 0:01:27]}  Be6 {[%clk 0:00:51]} 21. Bxg7 {[%clk 0:01:16]}  Rg8 {[%clk 0:00:49]} 22. Bxe5 {[%clk 0:01:14]}  Rxg2 {[%clk 0:00:45]} 23. Qh6 {[%clk 0:00:43]}  Bxa2+ {[%clk 0:00:36]} 24. Kxa2 {[%clk 0:00:32]}  Qxh6 {[%clk 0:00:37]} 0-1


[Site "https://www.chess.com"]

[Event "Titled Tuesday Blitz August 17 2021"]
[White "Batsuren, Dambasuren"]
[Black "AlexOstrovskiy"]
[WhiteFideId "4902920"]
[WhiteElo "2371"]
[BlackElo "2847"]
[Result "0-1"]
[Round "11"]
[TimeControl "180+1"]
[Date "2021.08.17"]
[WhiteClock "0:00:00"]
[BlackClock "0:00:03"]

1. d4 {[%clk 0:03:00]}  Nf6 {[%clk 0:03:00]} 2. c4 {[%clk 0:03:01]}  e5 {[%clk 0:02:59]} 3. dxe5 {[%clk 0:03:01]}  Ng4 {[%clk 0:03:00]} 4. e4 {[%clk 0:03:01]}  Nxe5 {[%clk 0:03:00]} 5. f4 {[%clk 0:03:02]}  Nec6 {[%clk 0:03:00]} 6. Be3 {[%clk 0:03:03]}  Bb4+ {[%clk 0:02:59]} 7. Kf2 {[%clk 0:02:58]}  b6 {[%clk 0:02:47]} 8. Nf3 {[%clk 0:02:53]}  O-O {[%clk 0:02:44]} 9. Nc3 {[%clk 0:02:51]}  Bxc3 {[%clk 0:02:14]} 10. bxc3 {[%clk 0:02:51]}  Na6 {[%clk 0:02:10]} 11. Bd3 {[%clk 0:02:44]}  Nc5 {[%clk 0:02:06]} 12. Bxc5 {[%clk 0:02:16]}  bxc5 {[%clk 0:02:07]} 13. e5 {[%clk 0:02:16]}  f6 {[%clk 0:02:00]} 14. Re1 {[%clk 0:01:57]}  fxe5 {[%clk 0:01:55]} 15. fxe5 {[%clk 0:01:58]}  Qe7 {[%clk 0:01:39]} 16. Kg1 {[%clk 0:01:57]}  Rb8 {[%clk 0:01:39]} 17. Qc2 {[%clk 0:01:28]}  g6 {[%clk 0:01:34]} 18. Be4 {[%clk 0:01:26]}  Rb6 {[%clk 0:01:32]} 19. Rad1 {[%clk 0:01:08]}  Kg7 {[%clk 0:01:32]} 20. Qd2 {[%clk 0:00:59]}  Nd8 {[%clk 0:01:25]} 21. h4 {[%clk 0:00:46]}  Ne6 {[%clk 0:01:24]} 22. h5 {[%clk 0:00:46]}  gxh5 {[%clk 0:01:18]} 23. Qf2 {[%clk 0:00:45]}  Nf4 {[%clk 0:01:13]} 24. Qg3+ {[%clk 0:00:42]}  Kh8 {[%clk 0:01:14]} 25. Ng5 {[%clk 0:00:27]}  h6 {[%clk 0:01:07]} 26. Nh7 {[%clk 0:00:27]}  h4 {[%clk 0:00:58]} 27. Qe3 {[%clk 0:00:14]}  Rf7 {[%clk 0:00:48]} 28. Bc2 {[%clk 0:00:11]}  Rxh7 {[%clk 0:00:31]} 29. Bxh7 {[%clk 0:00:12]}  Nxg2 {[%clk 0:00:31]} 30. Kxg2 {[%clk 0:00:07]}  Kxh7 {[%clk 0:00:30]} 31. Kh2 {[%clk 0:00:06]}  Bb7 {[%clk 0:00:27]} 32. Rd2 {[%clk 0:00:05]}  Rg6 {[%clk 0:00:25]} 33. Rf1 {[%clk 0:00:04]}  Qg7 {[%clk 0:00:20]} 34. Qf2 {[%clk 0:00:03]}  Rg2+ {[%clk 0:00:07]} 35. Qxg2 {[%clk 0:00:04]}  Qxe5+ {[%clk 0:00:07]} 36. Kg1 {[%clk 0:00:03]}  Bxg2 {[%clk 0:00:06]} 37. Rxg2 {[%clk 0:00:03]}  Qe6 {[%clk 0:00:04]} 38. Kh2 {[%clk 0:00:03]}  Qxc4 {[%clk 0:00:04]} 39. Re1 {[%clk 0:00:02]}  Qf4+ {[%clk 0:00:03]} 40. Kg1 {[%clk 0:00:00]}  Qf6 {[%clk 0:00:03]} 0-1


[Site "https://www.chess.com"]

[Event "Titled Tuesday Blitz August 17 2021"]
[White "Bengtson, Matthew"]
[Black "Provaznik, Michal"]
[WhiteFideId "2012847"]
[BlackFideId "315273"]
[WhiteElo "2262"]
[BlackElo "2176"]
[Result "1/2-1/2"]
[Round "11"]
[TimeControl "180+1"]
[Date "2021.08.18"]
[WhiteClock "0:00:01"]
[BlackClock "0:00:17"]

1. Nf3 {[%clk 0:03:00]}  d5 {[%clk 0:02:59]} 2. c4 {[%clk 0:03:00]}  d4 {[%clk 0:02:58]} 3. b4 {[%clk 0:02:59]}  Nf6 {[%clk 0:02:57]} 4. Bb2 {[%clk 0:02:58]}  e5 {[%clk 0:02:53]} 5. Nxe5 {[%clk 0:02:57]}  Nbd7 {[%clk 0:02:39]} 6. Nxd7 {[%clk 0:02:56]}  Bxd7 {[%clk 0:02:38]} 7. Bxd4 {[%clk 0:02:41]}  Bxb4 {[%clk 0:02:37]} 8. e3 {[%clk 0:02:37]}  O-O {[%clk 0:02:36]} 9. Be2 {[%clk 0:02:35]}  Re8 {[%clk 0:02:35]} 10. O-O {[%clk 0:02:34]}  c5 {[%clk 0:02:26]} 11. Bc3 {[%clk 0:02:31]}  Bc6 {[%clk 0:02:23]} 12. Bxb4 {[%clk 0:02:28]}  cxb4 {[%clk 0:02:22]} 13. d4 {[%clk 0:02:27]}  Ne4 {[%clk 0:02:19]} 14. f3 {[%clk 0:02:12]}  Ng5 {[%clk 0:02:07]} 15. d5 {[%clk 0:02:05]}  Bd7 {[%clk 0:02:04]} 16. Qd4 {[%clk 0:01:48]}  Qe7 {[%clk 0:01:52]} 17. h4 {[%clk 0:01:37]}  Qxe3+ {[%clk 0:01:51]} 18. Qxe3 {[%clk 0:01:37]}  Rxe3 {[%clk 0:01:52]} 19. Kf2 {[%clk 0:01:35]}  Rae8 {[%clk 0:01:44]} 20. Bd1 {[%clk 0:01:19]}  Ne4+ {[%clk 0:01:03]} 21. fxe4 {[%clk 0:01:19]}  R3xe4 {[%clk 0:01:04]} 22. Nd2 {[%clk 0:01:14]}  Rd4 {[%clk 0:01:00]} 23. Nf3 {[%clk 0:01:11]}  Rxc4 {[%clk 0:01:00]} 24. Bb3 {[%clk 0:01:08]}  Rf4 {[%clk 0:00:58]} 25. Rfe1 {[%clk 0:00:58]}  Kf8 {[%clk 0:00:49]} 26. Rxe8+ {[%clk 0:00:57]}  Bxe8 {[%clk 0:00:48]} 27. Rc1 {[%clk 0:00:56]}  h6 {[%clk 0:00:38]} 28. Ke3 {[%clk 0:00:55]}  Rg4 {[%clk 0:00:36]} 29. Rc7 {[%clk 0:00:47]}  Rxg2 {[%clk 0:00:34]} 30. Rxb7 {[%clk 0:00:47]}  g5 {[%clk 0:00:34]} 31. hxg5 {[%clk 0:00:45]}  hxg5 {[%clk 0:00:35]} 32. d6 {[%clk 0:00:44]}  g4 {[%clk 0:00:32]} 33. Nh4 {[%clk 0:00:38]}  Rh2 {[%clk 0:00:23]} 34. Nf5 {[%clk 0:00:37]}  Rg2 {[%clk 0:00:15]} 35. d7 {[%clk 0:00:36]}  Bxd7 {[%clk 0:00:14]} 36. Rxd7 {[%clk 0:00:36]}  Ke8 {[%clk 0:00:15]} 37. Rxf7 {[%clk 0:00:34]}  g3 {[%clk 0:00:14]} 38. Re7+ {[%clk 0:00:33]}  Kd8 {[%clk 0:00:14]} 39. Rg7 {[%clk 0:00:33]}  a5 {[%clk 0:00:12]} 40. Rxg3 {[%clk 0:00:32]}  Rb2 {[%clk 0:00:13]} 41. Be6 {[%clk 0:00:29]}  a4 {[%clk 0:00:11]} 42. Rg8+ {[%clk 0:00:27]}  Kc7 {[%clk 0:00:10]} 43. Ra8 {[%clk 0:00:27]}  b3 {[%clk 0:00:09]} 44. axb3 {[%clk 0:00:26]}  axb3 {[%clk 0:00:09]} 45. Nd4 {[%clk 0:00:26]}  Ra2 {[%clk 0:00:09]} 46. Rxa2 {[%clk 0:00:25]}  bxa2 {[%clk 0:00:09]} 47. Bxa2 {[%clk 0:00:26]}  Kd6 {[%clk 0:00:10]} 48. Ke4 {[%clk 0:00:25]}  Kc5 {[%clk 0:00:11]} 49. Nc2 {[%clk 0:00:25]}  Kd6 {[%clk 0:00:12]} 50. Kd4 {[%clk 0:00:23]}  Ke7 {[%clk 0:00:11]} 51. Ke5 {[%clk 0:00:22]}  Kf8 {[%clk 0:00:11]} 52. Be6 {[%clk 0:00:21]}  Kg7 {[%clk 0:00:12]} 53. Kf5 {[%clk 0:00:20]}  Kh6 {[%clk 0:00:13]} 54. Bf7 {[%clk 0:00:19]}  Kg7 {[%clk 0:00:13]} 55. Bg6 {[%clk 0:00:18]}  Kh6 {[%clk 0:00:12]} 56. Nd4 {[%clk 0:00:18]}  Kg7 {[%clk 0:00:13]} 57. Ne6+ {[%clk 0:00:17]}  Kh6 {[%clk 0:00:13]} 58. Nf4 {[%clk 0:00:17]}  Kg7 {[%clk 0:00:13]} 59. Kg5 {[%clk 0:00:17]}  Kf8 {[%clk 0:00:13]} 60. Kf6 {[%clk 0:00:17]}  Kg8 {[%clk 0:00:13]} 61. Ne6 {[%clk 0:00:17]}  Kh8 {[%clk 0:00:13]} 62. Ng5 {[%clk 0:00:17]}  Kg8 {[%clk 0:00:14]} 63. Nf7 {[%clk 0:00:16]}  Kf8 {[%clk 0:00:13]} 64. Bh7 {[%clk 0:00:17]}  Ke8 {[%clk 0:00:13]} 65. Ne5 {[%clk 0:00:17]}  Kf8 {[%clk 0:00:13]} 66. Bd3 {[%clk 0:00:16]}  Ke8 {[%clk 0:00:13]} 67. Ke6 {[%clk 0:00:14]}  Kd8 {[%clk 0:00:13]} 68. Nd7 {[%clk 0:00:11]}  Kc7 {[%clk 0:00:13]} 69. Ke7 {[%clk 0:00:09]}  Kc6 {[%clk 0:00:13]} 70. Be4+ {[%clk 0:00:09]}  Kb5 {[%clk 0:00:13]} 71. Kd6 {[%clk 0:00:09]}  Kc4 {[%clk 0:00:13]} 72. Ne5+ {[%clk 0:00:08]}  Kc3 {[%clk 0:00:13]} 73. Kd5 {[%clk 0:00:08]}  Kb2 {[%clk 0:00:14]} 74. Kc4 {[%clk 0:00:08]}  Ka3 {[%clk 0:00:13]} 75. Kc3 {[%clk 0:00:07]}  Ka2 {[%clk 0:00:13]} 76. Nd3 {[%clk 0:00:05]}  Ka1 {[%clk 0:00:14]} 77. Nc5 {[%clk 0:00:04]}  Ka2 {[%clk 0:00:14]} 78. Nb3 {[%clk 0:00:04]}  Ka3 {[%clk 0:00:14]} 79. Bb1 {[%clk 0:00:04]}  Ka4 {[%clk 0:00:14]} 80. Nd4 {[%clk 0:00:04]}  Ka5 {[%clk 0:00:14]} 81. Kc4 {[%clk 0:00:04]}  Kb6 {[%clk 0:00:14]} 82. Bf5 {[%clk 0:00:03]}  Kc7 {[%clk 0:00:15]} 83. Kd5 {[%clk 0:00:02]}  Kd8 {[%clk 0:00:15]} 84. Kd6 {[%clk 0:00:02]}  Ke8 {[%clk 0:00:16]} 85. Ke6 {[%clk 0:00:02]}  Kf8 {[%clk 0:00:16]} 86. Kf6 {[%clk 0:00:02]}  Kg8 {[%clk 0:00:17]} 87. Ne6 {[%clk 0:00:02]}  Kh8 {[%clk 0:00:17]} 88. Ng5 {[%clk 0:00:02]}  Kg8 {[%clk 0:00:17]} 89. Be6+ {[%clk 0:00:02]}  Kh8 {[%clk 0:00:18]} 90. Bf5 {[%clk 0:00:02]}  Kg8 {[%clk 0:00:18]} 91. Nf7 {[%clk 0:00:02]}  Kf8 {[%clk 0:00:17]} 92. Bh7 {[%clk 0:00:03]}  Ke8 {[%clk 0:00:17]} 93. Bd3 {[%clk 0:00:02]}  Kd7 {[%clk 0:00:17]} 94. Ke5 {[%clk 0:00:01]}  Ke7 {[%clk 0:00:17]} 95. Nd6 {[%clk 0:00:01]}  Kd7 {[%clk 0:00:17]} 96. Be4 {[%clk 0:00:01]}  Ke7 {[%clk 0:00:17]} 1/2-1/2


[Site "https://www.chess.com"]

[Event "Titled Tuesday Blitz August 17 2021"]
[White "Bodnar, Nikolay"]
[Black "Gurvich, Vitaly"]
[WhiteFideId "14106469"]
[BlackFideId "24164852"]
[WhiteElo "2296"]
[BlackElo "2252"]
[Result "0-1"]
[Round "11"]
[TimeControl "180+1"]
[Date "2021.08.17"]
[WhiteClock "0:01:37"]
[BlackClock "0:01:27"]

1. d4 {[%clk 0:03:00]}  Nf6 {[%clk 0:02:57]} 2. c4 {[%clk 0:03:00]}  c5 {[%clk 0:02:57]} 3. d5 {[%clk 0:03:00]}  b5 {[%clk 0:02:57]} 4. Nd2 {[%clk 0:02:59]}  g6 {[%clk 0:02:49]} 5. e4 {[%clk 0:02:58]}  d6 {[%clk 0:02:50]} 6. b3 {[%clk 0:02:56]}  Bg7 {[%clk 0:02:49]} 7. Bb2 {[%clk 0:02:56]}  bxc4 {[%clk 0:02:47]} 8. bxc4 {[%clk 0:02:54]}  O-O {[%clk 0:02:47]} 9. Ngf3 {[%clk 0:02:54]}  Na6 {[%clk 0:02:47]} 10. a3 {[%clk 0:02:51]}  Qa5 {[%clk 0:02:44]} 11. Bd3 {[%clk 0:02:49]}  Rb8 {[%clk 0:02:42]} 12. Qc2 {[%clk 0:02:50]}  Rxb2 {[%clk 0:02:33]} 13. Qxb2 {[%clk 0:02:49]}  Nxe4 {[%clk 0:02:32]} 14. Qa2 {[%clk 0:02:30]}  Nxd2 {[%clk 0:02:22]} 15. Nxd2 {[%clk 0:02:28]}  Qc3 {[%clk 0:02:15]} 16. O-O {[%clk 0:02:16]}  Qxd3 {[%clk 0:02:13]} 17. Rad1 {[%clk 0:02:17]}  Bg4 {[%clk 0:01:53]} 18. Nf3 {[%clk 0:02:17]}  Qc3 {[%clk 0:01:51]} 19. Rc1 {[%clk 0:02:17]}  Qa5 {[%clk 0:01:51]} 20. Rfe1 {[%clk 0:02:09]}  Bxf3 {[%clk 0:01:48]} 21. gxf3 {[%clk 0:02:10]}  Bf6 {[%clk 0:01:48]} 22. Rb1 {[%clk 0:02:07]}  Nb4 {[%clk 0:01:43]} 23. Qb3 {[%clk 0:02:04]}  Na6 {[%clk 0:01:41]} 24. Qb5 {[%clk 0:01:53]}  Qxa3 {[%clk 0:01:39]} 25. Re3 {[%clk 0:01:49]}  Qa2 {[%clk 0:01:37]} 26. Rbb3 {[%clk 0:01:46]}  Nb4 {[%clk 0:01:35]} 27. Ra3 {[%clk 0:01:44]}  Qb1+ {[%clk 0:01:35]} 28. Kg2 {[%clk 0:01:45]}  Qf5 {[%clk 0:01:33]} 29. Rxa7 {[%clk 0:01:44]}  Nc2 {[%clk 0:01:30]} 30. Re4 {[%clk 0:01:39]}  Nd4 {[%clk 0:01:28]} 31. Qb1 {[%clk 0:01:36]}  Qxf3+ {[%clk 0:01:28]} 32. Kg1 {[%clk 0:01:37]}  Ne2+ {[%clk 0:01:26]} 33. Rxe2 {[%clk 0:01:37]}  Qxe2 {[%clk 0:01:27]} 0-1


[Site "https://www.chess.com"]

[Event "Titled Tuesday Blitz August 17 2021"]
[White "Bologan, Victor"]
[Black "Aldokhin, Ivan"]
[WhiteFideId "13900048"]
[BlackFideId "24115720"]
[WhiteElo "2511"]
[BlackElo "2306"]
[Result "0-1"]
[Round "11"]
[TimeControl "180+1"]
[Date "2021.08.17"]
[WhiteClock "0:02:19"]
[BlackClock "0:00:44"]

1. e4 {[%clk 0:03:00]}  c5 {[%clk 0:02:59]} 2. Nf3 {[%clk 0:02:59]}  e6 {[%clk 0:03:00]} 3. d4 {[%clk 0:02:59]}  cxd4 {[%clk 0:03:00]} 4. Nxd4 {[%clk 0:03:00]}  a6 {[%clk 0:03:01]} 5. Nc3 {[%clk 0:03:01]}  Qc7 {[%clk 0:03:01]} 6. Bd3 {[%clk 0:03:01]}  Nf6 {[%clk 0:03:02]} 7. O-O {[%clk 0:03:00]}  d6 {[%clk 0:03:01]} 8. Kh1 {[%clk 0:03:00]}  Be7 {[%clk 0:02:59]} 9. f4 {[%clk 0:03:00]}  Nbd7 {[%clk 0:02:56]} 10. a4 {[%clk 0:03:00]}  b6 {[%clk 0:02:56]} 11. Be3 {[%clk 0:03:00]}  Bb7 {[%clk 0:02:56]} 12. Qf3 {[%clk 0:03:00]}  O-O {[%clk 0:02:46]} 13. Rae1 {[%clk 0:03:00]}  Rfe8 {[%clk 0:02:23]} 14. Qh3 {[%clk 0:02:57]}  Nc5 {[%clk 0:02:04]} 15. Bf2 {[%clk 0:02:54]}  Nxd3 {[%clk 0:02:01]} 16. cxd3 {[%clk 0:02:54]}  Nd7 {[%clk 0:01:50]} 17. f5 {[%clk 0:02:51]}  e5 {[%clk 0:01:44]} 18. Nc2 {[%clk 0:02:51]}  Bg5 {[%clk 0:01:29]} 19. Nb4 {[%clk 0:02:42]}  Nf6 {[%clk 0:01:24]} 20. Bh4 {[%clk 0:02:37]}  Bxh4 {[%clk 0:01:05]} 21. Qxh4 {[%clk 0:02:36]}  Qc5 {[%clk 0:01:02]} 22. Nc2 {[%clk 0:02:35]}  d5 {[%clk 0:00:59]} 23. exd5 {[%clk 0:02:35]}  Nxd5 {[%clk 0:00:57]} 24. f6 {[%clk 0:02:31]}  Nxf6 {[%clk 0:00:55]} 25. Rxf6 {[%clk 0:02:29]}  gxf6 {[%clk 0:00:54]} 26. Ne3 {[%clk 0:02:29]}  e4 {[%clk 0:00:48]} 27. dxe4 {[%clk 0:02:19]}  Qg5 {[%clk 0:00:44]} 0-1


[Site "https://www.chess.com"]

[Event "Titled Tuesday Blitz August 17 2021"]
[White "Bortnyk, Olexandr"]
[Black "Rodriguez Hernandez, Luis Daniel"]
[WhiteFideId "14120828"]
[BlackFideId "3506770"]
[WhiteElo "2723"]
[BlackElo "2133"]
[Result "1-0"]
[Round "11"]
[TimeControl "180+1"]
[Date "2021.08.17"]
[WhiteClock "0:01:12"]
[BlackClock "0:00:37"]

1. e4 {[%clk 0:03:00]}  e5 {[%clk 0:02:59]} 2. Bc4 {[%clk 0:02:59]}  Nf6 {[%clk 0:02:58]} 3. Nc3 {[%clk 0:02:56]}  Nxe4 {[%clk 0:02:58]} 4. Qh5 {[%clk 0:02:53]}  Nd6 {[%clk 0:02:59]} 5. Bb3 {[%clk 0:02:49]}  Be7 {[%clk 0:02:59]} 6. f4 {[%clk 0:02:34]}  exf4 {[%clk 0:02:43]} 7. d4 {[%clk 0:02:32]}  Nc6 {[%clk 0:02:34]} 8. Bxf4 {[%clk 0:02:30]}  Nxd4 {[%clk 0:02:23]} 9. O-O-O {[%clk 0:02:01]}  Nxb3+ {[%clk 0:02:21]} 10. axb3 {[%clk 0:02:02]}  g6 {[%clk 0:01:56]} 11. Qe5 {[%clk 0:01:57]}  O-O {[%clk 0:01:56]} 12. Nd5 {[%clk 0:01:57]}  Re8 {[%clk 0:01:19]} 13. Re1 {[%clk 0:01:48]}  Bg5 {[%clk 0:00:46]} 14. Bxg5 {[%clk 0:01:40]}  Rxe5 {[%clk 0:00:46]} 15. Rxe5 {[%clk 0:01:40]}  Qf8 {[%clk 0:00:46]} 16. Nf3 {[%clk 0:01:19]}  h6 {[%clk 0:00:42]} 17. Be7 {[%clk 0:01:17]}  Qg7 {[%clk 0:00:37]} 18. Nf6+ {[%clk 0:01:12]}  Kh8 {[%clk 0:00:37]} 19. Bxd6 {[%clk 0:01:11]}  Qxf6 {[%clk 0:00:37]} 20. Re8+ {[%clk 0:01:12]} 1-0


[Site "https://www.chess.com"]

[Event "Titled Tuesday Blitz August 17 2021"]
[White "Boskovic, Drasko"]
[Black "Dobrowolski, Piotr"]
[WhiteFideId "927368"]
[BlackFideId "1106236"]
[WhiteElo "2388"]
[BlackElo "2296"]
[Result "1/2-1/2"]
[Round "11"]
[TimeControl "180+1"]
[Date "2021.08.17"]
[WhiteClock "0:01:13"]
[BlackClock "0:00:15"]

1. e4 {[%clk 0:02:57]}  e6 {[%clk 0:03:00]} 2. d4 {[%clk 0:02:57]}  d5 {[%clk 0:03:00]} 3. Nd2 {[%clk 0:02:57]}  a6 {[%clk 0:03:00]} 4. Bd3 {[%clk 0:02:57]}  c5 {[%clk 0:03:00]} 5. dxc5 {[%clk 0:02:57]}  Bxc5 {[%clk 0:03:00]} 6. Ngf3 {[%clk 0:02:58]}  Nc6 {[%clk 0:03:00]} 7. O-O {[%clk 0:02:58]}  Nf6 {[%clk 0:03:01]} 8. exd5 {[%clk 0:02:55]}  Qxd5 {[%clk 0:02:56]} 9. Nb3 {[%clk 0:02:55]}  Bb6 {[%clk 0:02:54]} 10. Qe2 {[%clk 0:02:55]}  O-O {[%clk 0:02:51]} 11. c4 {[%clk 0:02:55]}  Qh5 {[%clk 0:02:50]} 12. Bg5 {[%clk 0:02:54]}  e5 {[%clk 0:02:35]} 13. Bxf6 {[%clk 0:02:53]}  gxf6 {[%clk 0:02:34]} 14. Rfe1 {[%clk 0:02:20]}  Bg4 {[%clk 0:02:28]} 15. h3 {[%clk 0:02:20]}  Bxf3 {[%clk 0:02:27]} 16. Qxf3 {[%clk 0:02:21]}  Qxf3 {[%clk 0:02:27]} 17. gxf3 {[%clk 0:02:22]}  Rad8 {[%clk 0:02:22]} 18. Be4 {[%clk 0:02:22]}  a5 {[%clk 0:02:19]} 19. c5 {[%clk 0:02:22]}  Bc7 {[%clk 0:02:11]} 20. Red1 {[%clk 0:02:17]}  a4 {[%clk 0:02:10]} 21. Nd2 {[%clk 0:02:17]}  Nd4 {[%clk 0:02:07]} 22. Bxb7 {[%clk 0:02:16]}  Rb8 {[%clk 0:01:59]} 23. c6 {[%clk 0:02:15]}  Ba5 {[%clk 0:01:59]} 24. Kg2 {[%clk 0:02:15]}  f5 {[%clk 0:01:51]} 25. Nc4 {[%clk 0:02:15]}  Bc7 {[%clk 0:01:51]} 26. f4 {[%clk 0:02:15]}  f6 {[%clk 0:01:51]} 27. b4 {[%clk 0:02:13]}  Kf7 {[%clk 0:01:51]} 28. Rxd4 {[%clk 0:02:11]}  exd4 {[%clk 0:01:51]} 29. b5 {[%clk 0:02:12]}  Rxb7 {[%clk 0:01:42]} 30. cxb7 {[%clk 0:02:13]}  Rb8 {[%clk 0:01:42]} 31. Kf3 {[%clk 0:01:57]}  Rxb7 {[%clk 0:01:42]} 32. b6 {[%clk 0:01:58]}  Bb8 {[%clk 0:01:39]} 33. Rd1 {[%clk 0:01:59]}  Rd7 {[%clk 0:01:37]} 34. Ke2 {[%clk 0:01:58]}  Bxf4 {[%clk 0:01:36]} 35. Kd3 {[%clk 0:01:59]}  Ke6 {[%clk 0:01:27]} 36. Rb1 {[%clk 0:01:57]}  Kd5 {[%clk 0:01:21]} 37. b7 {[%clk 0:01:56]}  Rd8 {[%clk 0:01:21]} 38. Rb5+ {[%clk 0:01:50]}  Kc6 {[%clk 0:01:20]} 39. Rxf5 {[%clk 0:01:50]}  Be5 {[%clk 0:01:18]} 40. f4 {[%clk 0:01:49]}  Bb8 {[%clk 0:01:09]} 41. Rxf6+ {[%clk 0:01:47]}  Kxb7 {[%clk 0:01:10]} 42. Rf7+ {[%clk 0:01:48]}  Kc6 {[%clk 0:01:09]} 43. Rxh7 {[%clk 0:01:48]}  Bxf4 {[%clk 0:01:09]} 44. Rf7 {[%clk 0:01:46]}  Be3 {[%clk 0:01:06]} 45. Nxe3 {[%clk 0:01:46]}  dxe3+ {[%clk 0:01:07]} 46. Kxe3 {[%clk 0:01:47]}  Rh8 {[%clk 0:00:56]} 47. Rf3 {[%clk 0:01:46]}  Kd5 {[%clk 0:00:53]} 48. Kf2 {[%clk 0:01:46]}  Ke4 {[%clk 0:00:49]} 49. Kg2 {[%clk 0:01:46]}  Rg8+ {[%clk 0:00:48]} 50. Rg3 {[%clk 0:01:46]}  Rb8 {[%clk 0:00:39]} 51. Rg4+ {[%clk 0:01:47]}  Ke3 {[%clk 0:00:39]} 52. Rxa4 {[%clk 0:01:47]}  Rg8+ {[%clk 0:00:37]} 53. Kf1 {[%clk 0:01:48]}  Rf8+ {[%clk 0:00:36]} 54. Ke1 {[%clk 0:01:48]}  Rb8 {[%clk 0:00:34]} 55. Ra3+ {[%clk 0:01:48]}  Kf4 {[%clk 0:00:35]} 56. Kd2 {[%clk 0:01:48]}  Rb2+ {[%clk 0:00:29]} 57. Kc3 {[%clk 0:01:48]}  Re2 {[%clk 0:00:30]} 58. Kb4 {[%clk 0:01:48]}  Re4+ {[%clk 0:00:29]} 59. Kc5 {[%clk 0:01:49]}  Re5+ {[%clk 0:00:30]} 60. Kd6 {[%clk 0:01:49]}  Re2 {[%clk 0:00:30]} 61. h4 {[%clk 0:01:48]}  Kg4 {[%clk 0:00:30]} 62. Ra4+ {[%clk 0:01:48]}  Kh5 {[%clk 0:00:30]} 63. a3 {[%clk 0:01:48]}  Re3 {[%clk 0:00:30]} 64. Kd5 {[%clk 0:01:48]}  Rf3 {[%clk 0:00:29]} 65. Ke5 {[%clk 0:01:38]}  Rg3 {[%clk 0:00:27]} 66. Kd5 {[%clk 0:01:35]}  Rf3 {[%clk 0:00:26]} 67. Kc5 {[%clk 0:01:30]}  Rf5+ {[%clk 0:00:25]} 68. Kd6 {[%clk 0:01:30]}  Rf3 {[%clk 0:00:24]} 69. Ke5 {[%clk 0:01:28]}  Rg3 {[%clk 0:00:24]} 70. Ra8 {[%clk 0:01:21]}  Re3+ {[%clk 0:00:21]} 71. Kd4 {[%clk 0:01:19]}  Rb3 {[%clk 0:00:17]} 72. Kc4 {[%clk 0:01:18]}  Rf3 {[%clk 0:00:17]} 73. Rh8+ {[%clk 0:01:17]}  Kg6 {[%clk 0:00:17]} 74. a4 {[%clk 0:01:17]}  Rf4+ {[%clk 0:00:17]} 75. Kb5 {[%clk 0:01:17]}  Rf5+ {[%clk 0:00:17]} 76. Kb6 {[%clk 0:01:17]}  Rf6+ {[%clk 0:00:17]} 77. Kc7 {[%clk 0:01:17]}  Rf7+ {[%clk 0:00:18]} 78. Kd6 {[%clk 0:01:17]}  Ra7 {[%clk 0:00:17]} 79. Rg8+ {[%clk 0:01:15]}  Kh5 {[%clk 0:00:16]} 80. Rg5+ {[%clk 0:01:10]}  Kxh4 {[%clk 0:00:16]} 81. Rd5 {[%clk 0:01:10]}  Rxa4 {[%clk 0:00:16]} 82. Ke5 {[%clk 0:01:11]}  Rg4 {[%clk 0:00:16]} 83. Rd4 {[%clk 0:01:12]}  Rxd4 {[%clk 0:00:15]} 84. Kxd4 {[%clk 0:01:13]} 1/2-1/2


[Site "https://www.chess.com"]